[Event "FIDE WYCC Open U14 2023"]
[Site "Montesilvano"]
[Date "2023.11.21"]
[Round "8.34"]
[White "Lin, Leo"]
[Black "Kjartansson, Matthias Bjorgvin"]
[Result "1/2-1/2"]
[ECO "C44"]
[WhiteElo "2097"]
[BlackElo "1651"]
[Annotator "NA RC"]
[PlyCount "114"]
[EventDate "2023.11.13"]
[EventType "swiss"]
[EventCountry "ITA"]
[SourceTitle "playchess.com"]
[Source "ChessBase"]
[SourceQuality "1"]
[TimeControl "40/5400+30:1800+30"]

1. e4 {[%emt 0:00:04]} e5 {[%emt 0:00:06]} 2. Nf3 {[%emt 0:00:47]} Nc6 {[%emt 0:00:07]} 3. d4 {[%emt 0:00:47]} exd4 {[%emt 0:00:08]} 4. Nxd4 {[%emt 0:00:06]} Nf6 {[%emt 0:00:07]} 5. Nc3 {[%emt 0:00:06]} Bb4 {[%emt 0:00:17]} 6. Nxc6 {[%emt 0:00:08]} bxc6 {[%emt 0:00:07]} 7. Bd3 {[%emt 0:00:05]} d5 {[%emt 0:00:20]} 8. exd5 {[%emt 0:00:17]} O-O {[%emt 0:00:21]} 9. O-O {[%emt 0:00:09]} cxd5 {[%emt 0:00:25]} 10. h3 {[%emt 0:00:08]} h6 {[%emt 0:01:27]} 11. Qf3 {[%emt 0:00:41]} c6 {[%emt 0:00:08]} 12. Bf4 {[%emt 0:01:36]} Re8 {[%emt 0:03:38]} 13. a3 {[%emt 0:09:22]} Bd6 {[%emt 0:01:50]} 14. Bxd6 {[%emt 0:00:53]} Qxd6 {[%emt 0:00:11]} 15. Qg3 {[%emt 0:01:10]} Qxg3 {[%emt 0:03:23]} 16. fxg3 {[%emt 0:00:15]} Rb8 {[%emt 0:03:13]} 17. b4 {[%emt 0:00:45]} Rb7 {[%emt 0:07:34]} 18. Rae1 {[%emt 0:08:11]} Rbe7 {[%emt 0:00:14]} 19. Rxe7 {[%emt 0:00:08]} Rxe7 {[%emt 0:00:14]} 20. g4 {[%emt 0:00:18]} a5 {[%emt 0:08:33]} 21. bxa5 {[%emt 0:00:55]} Ra7 {[%emt 0:00:22]} 22. Rb1 {[%emt 0:01:41]} Nd7 {[%emt 0:02:09]} 23. Na4 {[%emt 0:02:06]} Ba6 {[%emt 0:01:48]} 24. Bf5 {[%emt 0:04:28]} Bb5 {[%emt 0:04:31]} 25. Nb6 {[%emt 0:08:16]} Nc5 {[%emt 0:03:08]} 26. a4 {[%emt 0:03:14]} Ba6 {[%emt 0:00:04]} 27. Nc8 {[%emt 0:40:28]} Bxc8 {[%emt 0:06:14]} 28. Rb8 {[%emt 0:00:17]} g6 {[%emt 0:00:54]} 29. Bxc8 {[%emt 0:01:18]} Rxa5 {[%emt 0:07:26]} 30. Bb7+ {[%emt 0:00:15]} Kg7 {[%emt 0:00:07]} 31. Bxc6 {[%emt 0:00:04]} Nxa4 {[%emt 0:00:15]} 32. Rb7 {[%emt 0:01:02]} Nc5 {[%emt 0:03:07]} 33. Rc7 {[%emt 0:03:44]} Ne4 {[%emt 0:02:00]} 34. Rd7 {[%emt 0:07:25]} Nf6 {[%emt 0:00:41]} 35. Rb7 {[%emt 0:00:46]} Ra2 {[%emt 0:01:55]} 36. c3 {[%emt 0:01:51]} Ra3 {[%emt 0:01:14]} 37. Bd7 {[%emt 0:00:10]} Nxd7 {[%emt 0:00:24]} 38. Rxd7 {[%emt 0:00:01]} Rxc3 {[%emt 0:00:12]} 39. Rxd5 {[%emt 0:00:00]} g5 {[%emt 0:00:00]} 40. Rd2 {[%emt 0:00:00]} Rc4 {[%emt 0:00:00]} 41. Kf2 {[%emt 0:03:25]} Kg6 {[%emt 0:09:27]} 42. Ke3 {[%emt 0:04:17]} Rc6 {[%emt 0:02:10]} 43. Ke4 {[%emt 0:01:05]} Re6+ {[%emt 0:01:08]} 44. Kf3 {[%emt 0:02:04]} Rc6 {[%emt 0:01:48]} 45. Ke4 {[%emt 0:02:26]} Re6+ {[%emt 0:00:17]} 46. Kd5 {[%emt 0:00:07]} Re8 {[%emt 0:01:13]} 47. Rf2 {[%emt 0:00:18]} Re7 {[%emt 0:02:28]} 48. Kd6 {[%emt 0:00:28]} Re6+ {[%emt 0:00:45]} 49. Kd7 {[%emt 0:00:23]} Re4 {[%emt 0:01:34]} 50. Rd2 {[%emt 0:00:12]} Kf6 {[%emt 0:05:31]} 51. Rf2+ {[%emt 0:01:57]} Kg6 {[%emt 0:01:11]} 52. Rf3 {[%emt 0:03:18]} Rf4 {[%emt 0:05:19]} 53. Ke7 {[%emt 0:14:08]} f5 {[%emt 0:01:01]} 54. gxf5+ {[%emt 0:06:52]} Kxf5 55. Kf7 Rxf3 56. gxf3 Kf4 57. Kg6 Kxf3 1/2-1/2

[Event "FIDE WYCC Open U14 2023"]
[Site "Montesilvano"]
[Date "2023.11.21"]
[Round "8.35"]
[White "Lira, Suan Bruno Fernandes"]
[Black "Warchol, Kamil"]
[Result "0-1"]
[ECO "D37"]
[WhiteElo "1858"]
[BlackElo "2095"]
[Annotator "NA RC"]
[PlyCount "78"]
[EventDate "2023.11.13"]
[EventType "swiss"]
[EventCountry "ITA"]
[SourceTitle "playchess.com"]
[Source "ChessBase"]
[SourceQuality "1"]
[TimeControl "40/5400+30:1800+30"]

1. d4 {[%emt 0:00:04]} Nf6 {[%emt 0:00:17]} 2. c4 {[%emt 0:00:06]} e6 {[%emt 0:00:08]} 3. Nf3 {[%emt 0:00:06]} d5 {[%emt 0:00:17]} 4. Nc3 {[%emt 0:00:12]} dxc4 {[%emt 0:00:18]} 5. e4 {[%emt 0:00:15]} b5 {[%emt 0:00:27]} 6. e5 {[%emt 0:00:29]} Nd5 {[%emt 0:00:26]} 7. Nxb5 {[%emt 0:00:12]} Nb6 {[%emt 0:00:24]} 8. Be3 {[%emt 0:01:12]} Nc6 {[%emt 0:06:01]} 9. Be2 {[%emt 0:02:58]} Be7 {[%emt 0:01:58]} 10. O-O {[%emt 0:01:33]} O-O {[%emt 0:01:13]} 11. Rc1 {[%emt 0:02:12]} Rb8 {[%emt 0:04:05]} 12. Nc3 {[%emt 0:05:04]} Nb4 {[%emt 0:14:16]} 13. a3 {[%emt 0:16:04]} N4d5 {[%emt 0:03:50]} 14. Nd2 {[%emt 0:09:39]} Nxe3 {[%emt 0:09:40]} 15. fxe3 {[%emt 0:00:06]} c5 {[%emt 0:00:16]} 16. Nxc4 {[%emt 0:13:55]} Nxc4 {[%emt 0:09:46]} 17. Bxc4 {[%emt 0:00:11]} Bg5 {[%emt 0:00:13]} 18. Kh1 {[%emt 0:29:22]} Bxe3 {[%emt 0:09:16]} 19. Rc2 {[%emt 0:09:43]} Bxd4 {[%emt 0:06:21]} 20. Qe1 {[%emt 0:04:56]} Qg5 {[%emt 0:02:26]} 21. Re2 {[%emt 0:01:53]} Bb7 {[%emt 0:01:00]} 22. Ne4 {[%emt 0:00:44]} Bxe4 {[%emt 0:00:57]} 23. Rxe4 {[%emt 0:00:06]} Rxb2 {[%emt 0:00:10]} 24. Re2 {[%emt 0:00:53]} Rxe2 {[%emt 0:01:20]} 25. Qxe2 {[%emt 0:00:08]} Qxe5 {[%emt 0:00:27]} 26. Qf3 {[%emt 0:00:43]} Qd6 {[%emt 0:04:24]} 27. Rb1 {[%emt 0:00:42]} Rb8 {[%emt 0:01:26]} 28. Rb7 {[%emt 0:00:31]} Rxb7 {[%emt 0:02:30]} 29. Qxb7 {[%emt 0:00:06]} Bf6 {[%emt 0:01:22]} 30. g3 {[%emt 0:00:19]} g6 {[%emt 0:01:28]} 31. Qa6 {[%emt 0:01:02]} Qxa6 {[%emt 0:01:52]} 32. Bxa6 {[%emt 0:00:06]} Bb2 {[%emt 0:00:34]} 33. a4 f5 {[%emt 0:00:44]} 34. Kg2 {[%emt 0:00:14]} e5 {[%emt 0:00:09]} 35. h3 {[%emt 0:01:36]} Kf7 {[%emt 0:00:30]} 36. g4 {[%emt 0:00:16]} Kf6 {[%emt 0:00:25]} 37. gxf5 {[%emt 0:00:13]} gxf5 {[%emt 0:00:06]} 38. Bc8 {[%emt 0:00:34]} e4 {[%emt 0:00:24]} 39. h4 {[%emt 0:00:51]} c4 {[%emt 0:00:05]} 0-1

[Event "FIDE WYCC Open U14 2023"]
[Site "Montesilvano"]
[Date "2023.11.22"]
[Round "9.1"]
[White "Ermitsch, Magnus"]
[Black "Cieslak, Patryk"]
[Result "1-0"]
[ECO "C07"]
[WhiteElo "2206"]
[BlackElo "2284"]
[Annotator "RC"]
[PlyCount "163"]
[EventDate "2023.11.13"]
[EventType "swiss"]
[EventCountry "ITA"]
[SourceTitle "playchess.com"]
[Source "ChessBase"]
[SourceQuality "1"]
[TimeControl "40/5400+30:1800+30"]

1. e4 {[%emt 0:00:02]} e6 {[%emt 0:00:00]} 2. d4 {[%emt 0:00:07]} d5 {[%emt 0:00:01]} 3. Nd2 {[%emt 0:00:06]} c5 {[%emt 0:00:02]} 4. Ngf3 {[%emt 0:00:06]} cxd4 {[%emt 0:01:22]} 5. Nxd4 {[%emt 0:00:13]} Nf6 {[%emt 0:02:15]} 6. exd5 {[%emt 0:02:13]} Nxd5 {[%emt 0:00:20]} 7. N2f3 {[%emt 0:02:20]} Bb4+ {[%emt 0:01:53]} 8. Bd2 {[%emt 0:03:35]} O-O {[%emt 0:03:01]} 9. Bxb4 {[%emt 0:15:55]} Nxb4 {[%emt 0:00:02]} 10. Qd2 {[%emt 0:01:12]} Qb6 {[%emt 0:12:42]} 11. c3 {[%emt 0:04:37]} N4c6 {[%emt 0:02:06]} 12. Nb3 {[%emt 0:02:41]} Rd8 {[%emt 0:06:32]} 13. Bd3 {[%emt 0:04:38]} a5 {[%emt 0:07:18]} 14. Qc2 {[%emt 0:02:27]} h6 {[%emt 0:00:10]} 15. O-O {[%emt 0:02:12]} a4 {[%emt 0:04:21]} 16. Nbd2 {[%emt 0:00:59]} Nd7 {[%emt 0:02:27]} 17. Nc4 {[%emt 0:07:55]} Qc5 {[%emt 0:01:51]} 18. b4 {[%emt 0:02:37]} axb3 {[%emt 0:00:16]} 19. axb3 {[%emt 0:00:07]} Rxa1 {[%emt 0:01:56]} 20. Rxa1 {[%emt 0:00:10]} Ne7 {[%emt 0:04:36]} 21. b4 {[%emt 0:07:55]} Qc7 {[%emt 0:00:30]} 22. Ne3 {[%emt 0:06:33]} Nf6 {[%emt 0:04:43]} 23. Nd4 {[%emt 0:07:04]} Bd7 {[%emt 0:02:12]} 24. c4 {[%emt 0:03:48]} Nc6 {[%emt 0:07:55]} 25. Nxc6 {[%emt 0:02:02]} Bxc6 {[%emt 0:00:01]} 26. b5 {[%emt 0:07:10]} Be8 {[%emt 0:01:41]} 27. Be2 {[%emt 0:05:23]} Rc8 {[%emt 0:01:04]} 28. Bf3 {[%emt 0:00:47]} Nd7 {[%emt 0:01:04]} 29. Rd1 {[%emt 0:02:08]} Nc5 {[%emt 0:02:22]} 30. Qd2 {[%emt 0:00:48]} Qf4 {[%emt 0:02:32]} 31. Qa5 {[%emt 0:01:16]} Qb8 {[%emt 0:03:08]} 32. Qb6 {[%emt 0:00:49]} Rc7 {[%emt 0:00:34]} 33. g3 {[%emt 0:02:16]} Qc8 {[%emt 0:01:12]} 34. Ra1 {[%emt 0:00:34]} Nd7 {[%emt 0:03:56]} 35. Qd6 {[%emt 0:00:23]} Qb8 {[%emt 0:03:13]} 36. Ra8 {[%emt 0:01:10]} Qxa8 {[%emt 0:00:19]} 37. Qxc7 {[%emt 0:00:02]} Qa1+ {[%emt 0:11:10]} 38. Kg2 {[%emt 0:00:06]} Qa7 {[%emt 0:03:44]} 39. Bc6 {[%emt 0:04:29]} Nf6 {[%emt 0:01:50]} 40. Bxb7 {[%emt 0:00:00]} Nd7 {[%emt 0:00:00]} 41. Qc8 {[%emt 0:03:16]} Kf8 {[%emt 0:06:33]} 42. Bc6 {[%emt 0:01:09]} Ke7 {[%emt 0:01:03]} 43. c5 {[%emt 0:01:39]} Qxc5 {[%emt 0:00:56]} 44. Bxd7 {[%emt 0:00:06]} Qxc8 {[%emt 0:00:06]} 45. Bxc8 {[%emt 0:00:04]} Bxb5 {[%emt 0:00:02]} 46. Bb7 {[%emt 0:00:26]} f5 {[%emt 0:05:25]} 47. Nc2 {[%emt 0:02:47]} e5 {[%emt 0:01:00]} 48. Ne3 {[%emt 0:00:49]} Bd3 {[%emt 0:01:22]} 49. Kf3 {[%emt 0:06:45]} Kf6 {[%emt 0:00:44]} 50. Nd5+ {[%emt 0:01:51]} Ke6 {[%emt 0:01:50]} 51. Ke3 {[%emt 0:00:21]} Bc2 {[%emt 0:00:30]} 52. Nb4 {[%emt 0:00:48]} Bb3 {[%emt 0:00:11]} 53. Bc8+ {[%emt 0:00:33]} Kf6 {[%emt 0:00:07]} 54. Nd3 {[%emt 0:00:27]} Bc2 {[%emt 0:02:17]} 55. Nc5 {[%emt 0:00:27]} g5 {[%emt 0:02:20]} 56. Kd2 {[%emt 0:02:02]} Bb1 {[%emt 0:00:41]} 57. Nd7+ {[%emt 0:00:57]} Ke6 {[%emt 0:00:01]} 58. Nb6+ {[%emt 0:00:41]} Kf7 {[%emt 0:00:34]} 59. Nd5 {[%emt 0:00:53]} f4 {[%emt 0:00:56]} 60. g4 {[%emt 0:00:16]} Be4 {[%emt 0:00:33]} 61. Nc3 {[%emt 0:00:08]} Bf3 {[%emt 0:00:29]} 62. Ne2 {[%emt 0:02:34]} Kf6 {[%emt 0:01:30]} 63. Bf5 {[%emt 0:00:54]} h5 {[%emt 0:00:27]} 64. h3 {[%emt 0:01:49]} Bg2 {[%emt 0:00:28]} 65. Ng1 {[%emt 0:00:46]} e4 {[%emt 0:02:58]} 66. Bc8 {[%emt 0:04:22]} h4 {[%emt 0:00:36]} 67. Bf5 {[%emt 0:01:20]} Ke5 {[%emt 0:00:34]} 68. f3 {[%emt 0:00:32]} e3+ {[%emt 0:00:56]} 69. Kc3 {[%emt 0:00:38]} Bf1 {[%emt 0:00:57]} 70. Bd3 {[%emt 0:01:05]} Bg2 {[%emt 0:00:43]} 71. Kc4 {[%emt 0:00:41]} Bh1 {[%emt 0:02:07]} 72. Bf1 {[%emt 0:00:21]} Ke6 {[%emt 0:00:00]} 73. Kd4 {[%emt 0:00:35]} Kd6 {[%emt 0:00:02]} 74. Ke4 {[%emt 0:01:44]} Ke6 {[%emt 0:00:01]} 75. Bc4+ {[%emt 0:00:08]} Kf6 {[%emt 0:00:35]} 76. Kd5 {[%emt 0:00:07]} Bg2 {[%emt 0:00:03]} 77. Be2 {[%emt 0:00:05]} Kf7 {[%emt 0:00:19]} 78. Ke5 {[%emt 0:00:06]} Kg6 {[%emt 0:00:12]} 79. Ke6 {[%emt 0:00:08]} Kg7 {[%emt 0:00:14]} 80. Kf5 {[%emt 0:00:12]} Kh6 {[%emt 0:00:23]} 81. Kf6 {[%emt 0:00:08]} Bh1 {[%emt 0:00:28]} 82. Bf1 {[%emt 0:00:05]} 1-0

[Event "FIDE WYCC Open U14 2023"]
[Site "Montesilvano"]
[Date "2023.11.22"]
[Round "9.2"]
[White "Kozlovic, Jernej"]
[Black "Banh Gia Huy"]
[Result "0-1"]
[ECO "C02"]
[WhiteElo "2263"]
[BlackElo "2397"]
[Annotator "RC"]
[PlyCount "142"]
[EventDate "2023.11.13"]
[EventType "swiss"]
[EventCountry "ITA"]
[SourceTitle "playchess.com"]
[Source "ChessBase"]
[SourceQuality "1"]
[TimeControl "40/5400+30:1800+30"]

1. e4 {[%emt 0:00:06]} e6 {[%emt 0:00:01]} 2. d4 {[%emt 0:00:22]} d5 {[%emt 0:00:02]} 3. e5 {[%emt 0:00:59]} c5 {[%emt 0:00:04]} 4. c3 {[%emt 0:00:22]} Qb6 {[%emt 0:00:06]} 5. Nf3 {[%emt 0:00:45]} Bd7 {[%emt 0:00:08]} 6. Bd3 {[%emt 0:01:15]} Bb5 {[%emt 0:00:19]} 7. dxc5 {[%emt 0:00:50]} Bxc5 {[%emt 0:00:21]} 8. b4 {[%emt 0:01:08]} Bxd3 {[%emt 0:00:03]} 9. Qxd3 {[%emt 0:00:50]} Bf8 {[%emt 0:00:02]} 10. O-O {[%emt 0:01:27]} Nc6 {[%emt 0:00:03]} 11. Be3 {[%emt 0:04:26]} Qc7 {[%emt 0:02:54]} 12. Na3 {[%emt 0:04:55]} a6 {[%emt 0:01:01]} 13. c4 {[%emt 0:03:19]} Nxb4 {[%emt 0:19:52]} 14. Qb3 {[%emt 0:01:30]} Nh6 {[%emt 0:09:51]} 15. Rac1 {[%emt 0:18:21]} Qd7 {[%emt 0:13:28]} 16. Bd2 {[%emt 0:12:59]} a5 {[%emt 0:01:57]} 17. Rfd1 {[%emt 0:11:15]} Nf5 {[%emt 0:14:11]} 18. g4 {[%emt 0:18:28]} Ne7 {[%emt 0:03:01]} 19. Nb5 {[%emt 0:09:07]} Nec6 {[%emt 0:09:03]} 20. Bxb4 {[%emt 0:01:12]} Bxb4 {[%emt 0:00:20]} 21. a3 {[%emt 0:02:21]} a4 {[%emt 0:01:42]} 22. Qd3 {[%emt 0:01:55]} Be7 {[%emt 0:00:58]} 23. h3 {[%emt 0:01:00]} O-O {[%emt 0:06:02]} 24. cxd5 {[%emt 0:00:05]} exd5 {[%emt 0:00:07]} 25. Qxd5 {[%emt 0:00:11]} Qxd5 {[%emt 0:00:08]} 26. Rxd5 {[%emt 0:00:01]} Rfd8 {[%emt 0:00:13]} 27. Rxd8+ {[%emt 0:02:54]} Rxd8 {[%emt 0:00:14]} 28. Rc4 {[%emt 0:00:58]} Rd3 {[%emt 0:10:30]} 29. Nfd4 {[%emt 0:00:15]} Nxe5 {[%emt 0:03:41]} 30. Rxa4 {[%emt 0:01:25]} Rxh3 {[%emt 0:00:36]} 31. Ra7 {[%emt 0:00:38]} g6 {[%emt 0:01:00]} 32. Rxb7 {[%emt 0:00:18]} Bxa3 {[%emt 0:00:22]} 33. f3 {[%emt 0:00:49]} Nxf3+ {[%emt 0:00:58]} 34. Kg2 {[%emt 0:00:01]} Ng5 {[%emt 0:00:34]} 35. Rd7 {[%emt 0:00:22]} h6 {[%emt 0:01:17]} 36. Rc7 {[%emt 0:01:09]} Rd3 {[%emt 0:00:18]} 37. Rc3 {[%emt 0:00:31]} Rd2+ {[%emt 0:00:59]} 38. Kf1 {[%emt 0:00:17]} Bb2 {[%emt 0:00:16]} 39. Rc8+ {[%emt 0:00:28]} Kg7 {[%emt 0:00:45]} 40. Ne2 {[%emt 0:00:00]} Be5 {[%emt 0:00:00]} 41. Na3 {[%emt 0:01:44]} Rd1+ {[%emt 0:02:47]} 42. Kg2 {[%emt 0:00:35]} Ne6 {[%emt 0:00:16]} 43. Rc2 {[%emt 0:00:40]} Rd3 {[%emt 0:00:41]} 44. Nc4 {[%emt 0:00:23]} Nf4+ {[%emt 0:00:06]} 45. Kf2 {[%emt 0:00:07]} Bd4+ {[%emt 0:01:31]} 46. Nxd4 {[%emt 0:00:56]} Rxd4 {[%emt 0:00:02]} 47. Ne5 {[%emt 0:01:34]} Re4 {[%emt 0:00:54]} 48. Nc4 {[%emt 0:01:43]} Nd3+ {[%emt 0:00:08]} 49. Kg3 {[%emt 0:00:17]} Ne5 {[%emt 0:00:43]} 50. Nxe5 {[%emt 0:00:13]} Rxe5 {[%emt 0:00:03]} 51. Kf4 {[%emt 0:00:36]} Rb5 {[%emt 0:00:01]} 52. Rc6 {[%emt 0:00:07]} h5 {[%emt 0:00:14]} 53. gxh5 {[%emt 0:00:30]} Rxh5 {[%emt 0:00:02]} 54. Rc7 {[%emt 0:00:14]} Rf5+ {[%emt 0:00:09]} 55. Kg4 {[%emt 0:00:05]} Rf1 {[%emt 0:00:05]} 56. Ra7 {[%emt 0:01:41]} Kh6 {[%emt 0:00:05]} 57. Ra8 {[%emt 0:00:18]} f5+ {[%emt 0:00:05]} 58. Kh4 {[%emt 0:00:11]} Rh1+ {[%emt 0:00:37]} 59. Kg3 {[%emt 0:00:01]} Kg5 {[%emt 0:00:01]} 60. Ra5 {[%emt 0:00:31]} Rb1 {[%emt 0:00:18]} 61. Ra3 {[%emt 0:00:43]} Rb5 {[%emt 0:00:34]} 62. Rf3 {[%emt 0:02:12]} f4+ {[%emt 0:00:19]} 63. Rxf4 {[%emt 0:00:05]} Rb3+ {[%emt 0:00:03]} 64. Rf3 {[%emt 0:00:13]} Rxf3+ {[%emt 0:00:04]} 65. Kxf3 {[%emt 0:00:01]} Kh4 {[%emt 0:00:01]} 66. Kg2 {[%emt 0:00:52]} Kg4 {[%emt 0:00:01]} 67. Kh2 {[%emt 0:00:14]} Kf3 {[%emt 0:00:03]} 68. Kh3 {[%emt 0:01:13]} g5 {[%emt 0:00:01]} 69. Kh2 {[%emt 0:00:03]} g4 {[%emt 0:00:15]} 70. Kh1 {[%emt 0:00:02]} g3 {[%emt 0:00:05]} 71. Kg1 {[%emt 0:00:02]} g2 {[%emt 0:00:04]} 0-1

[Event "FIDE WYCC Open U14 2023"]
[Site "Montesilvano"]
[Date "2023.11.22"]
[Round "9.3"]
[White "Arca, Christian Gian Karlo"]
[Black "Akhmedov, David"]
[Result "0-1"]
[ECO "A45"]
[WhiteElo "2347"]
[BlackElo "2240"]
[Annotator "RC"]
[PlyCount "61"]
[EventDate "2023.11.13"]
[EventType "swiss"]
[EventCountry "ITA"]
[SourceTitle "playchess.com"]
[Source "ChessBase"]
[SourceQuality "1"]
[TimeControl "40/5400+30:1800+30"]

1. d4 {[%emt 0:00:39]} Nf6 {[%emt 0:00:08]} 2. Bf4 {[%emt 0:00:11]} d5 {[%emt 0:00:04]} 3. e3 {[%emt 0:00:06]} c5 {[%emt 0:00:46]} 4. dxc5 {[%emt 0:00:11]} e6 {[%emt 0:02:41]} 5. Nf3 {[%emt 0:00:51]} Bxc5 {[%emt 0:01:45]} 6. Bd3 {[%emt 0:00:05]} O-O {[%emt 0:03:59]} 7. O-O {[%emt 0:00:08]} a6 {[%emt 0:05:25]} 8. Nbd2 {[%emt 0:01:06]} Nbd7 {[%emt 0:02:36]} 9. a3 {[%emt 0:08:45]} Be7 {[%emt 0:09:14]} 10. h3 {[%emt 0:04:14]} Nc5 {[%emt 0:03:34]} 11. b4 {[%emt 0:03:58]} Nxd3 {[%emt 0:03:24]} 12. cxd3 {[%emt 0:00:29]} a5 {[%emt 0:01:09]} 13. Qa4 {[%emt 0:08:18]} Bd7 {[%emt 0:13:30]} 14. b5 {[%emt 0:00:51]} Qb6 {[%emt 0:01:40]} 15. Rab1 {[%emt 0:03:08]} Rfc8 {[%emt 0:06:27]} 16. Nd4 {[%emt 0:33:31]} Be8 {[%emt 0:11:44]} 17. N2b3 {[%emt 0:08:26]} Nd7 {[%emt 0:02:16]} 18. e4 {[%emt 0:01:37]} e5 {[%emt 0:05:23]} 19. Nf5 {[%emt 0:00:48]} Qd8 {[%emt 0:00:33]} 20. exd5 {[%emt 0:10:36]} exf4 {[%emt 0:00:13]} 21. Qxf4 {[%emt 0:01:46]} Bf8 {[%emt 0:01:18]} 22. Rfe1 {[%emt 0:00:57]} Qf6 {[%emt 0:01:14]} 23. Nd2 {[%emt 0:03:41]} g6 {[%emt 0:02:21]} 24. Nh6+ {[%emt 0:00:06]} Kg7 {[%emt 0:00:13]} 25. Qg3 {[%emt 0:06:17]} Kxh6 {[%emt 0:01:42]} 26. Ne4 {[%emt 0:00:33]} Qf5 {[%emt 0:00:34]} 27. Re3 {[%emt 0:00:56]} Kg7 {[%emt 0:01:14]} 28. d6 {[%emt 0:00:58]} Qe5 {[%emt 0:06:09]} 29. f4 {[%emt 0:00:37]} Qd4 {[%emt 0:02:20]} 30. f5 {[%emt 0:01:06]} Nf6 {[%emt 0:00:13]} 31. Rf1 {[%emt 0:00:28]} 0-1

[Event "FIDE WYCC Open U14 2023"]
[Site "Montesilvano"]
[Date "2023.11.22"]
[Round "9.4"]
[White "Daakshin Arun"]
[Black "Bharadia Yash"]
[Result "0-1"]
[ECO "E47"]
[WhiteElo "2342"]
[BlackElo "2071"]
[Annotator "RC"]
[PlyCount "134"]
[EventDate "2023.11.13"]
[EventType "swiss"]
[EventCountry "ITA"]
[SourceTitle "playchess.com"]
[Source "ChessBase"]
[SourceQuality "1"]
[TimeControl "40/5400+30:1800+30"]

1. d4 {[%emt 0:02:51]} Nf6 {[%emt 0:00:06]} 2. c4 {[%emt 0:00:25]} e6 {[%emt 0:00:08]} 3. Nc3 {[%emt 0:00:03]} Bb4 {[%emt 0:00:06]} 4. e3 {[%emt 0:00:03]} O-O {[%emt 0:00:08]} 5. Bd3 {[%emt 0:00:02]} c5 {[%emt 0:00:13]} 6. Nge2 {[%emt 0:01:00]} cxd4 {[%emt 0:00:19]} 7. exd4 {[%emt 0:00:32]} d5 {[%emt 0:00:03]} 8. cxd5 {[%emt 0:00:23]} Qxd5 {[%emt 0:06:18]} 9. O-O {[%emt 0:02:56]} Qh5 {[%emt 0:00:03]} 10. Ne4 {[%emt 0:01:23]} Nbd7 {[%emt 0:00:02]} 11. Bf4 {[%emt 0:03:36]} Nd5 {[%emt 0:15:20]} 12. Qb3 {[%emt 0:09:35]} N7b6 {[%emt 0:10:54]} 13. N2g3 {[%emt 0:09:50]} Qg6 {[%emt 0:05:59]} 14. Be5 {[%emt 0:12:10]} Qh6 {[%emt 0:03:43]} 15. Nc5 {[%emt 0:11:53]} Rd8 {[%emt 0:21:04]} 16. Nge4 {[%emt 0:04:43]} f6 {[%emt 0:01:39]} 17. Bc7 {[%emt 0:06:53]} Nxc7 {[%emt 0:02:29]} 18. Qxb4 {[%emt 0:00:03]} Nbd5 {[%emt 0:00:26]} 19. Qa3 {[%emt 0:02:50]} b6 {[%emt 0:03:11]} 20. Na6 {[%emt 0:02:14]} Bxa6 {[%emt 0:04:04]} 21. Bxa6 {[%emt 0:01:33]} Nxa6 {[%emt 0:09:47]} 22. Qxa6 {[%emt 0:00:05]} Qf4 {[%emt 0:00:30]} 23. Rfe1 {[%emt 0:06:24]} f5 {[%emt 0:06:19]} 24. g3 {[%emt 0:01:34]} Qg4 {[%emt 0:00:19]} 25. h3 {[%emt 0:00:57]} Qh5 {[%emt 0:03:30]} 26. Nc3 {[%emt 0:02:32]} Qxh3 {[%emt 0:00:27]} 27. Nxd5 {[%emt 0:01:31]} Rxd5 {[%emt 0:02:03]} 28. Rxe6 {[%emt 0:06:49]} f4 {[%emt 0:00:34]} 29. Qe2 {[%emt 0:00:38]} fxg3 {[%emt 0:04:23]} 30. Re8+ {[%emt 0:02:06]} Kf7 {[%emt 0:00:02]} 31. Qe7+ {[%emt 0:02:25]} Kg6 {[%emt 0:00:07]} 32. Qe4+ {[%emt 0:00:59]} Kh6 {[%emt 0:01:40]} 33. Qe3+ {[%emt 0:04:40]} Rg5 {[%emt 0:00:10]} 34. Qe6+ {[%emt 0:00:28]} Qxe6 {[%emt 0:00:17]} 35. Rxe6+ {[%emt 0:00:04]} g6 {[%emt 0:00:28]} 36. fxg3 {[%emt 0:00:13]} Rxg3+ {[%emt 0:00:42]} 37. Kf2 {[%emt 0:00:31]} Rh3 {[%emt 0:00:28]} 38. Kg2 {[%emt 0:00:41]} Rh5 {[%emt 0:00:49]} 39. Re7 {[%emt 0:00:48]} a5 {[%emt 0:00:37]} 40. Rf1 {[%emt 0:00:00]} Rc8 {[%emt 0:00:00]} 41. Rff7 {[%emt 0:02:39]} Rc2+ {[%emt 0:12:17]} 42. Kg3 {[%emt 0:03:47]} Rd5 {[%emt 0:06:48]} 43. Rxh7+ {[%emt 0:01:09]} Kg5 {[%emt 0:00:26]} 44. Kf3 {[%emt 0:16:25]} Rxb2 {[%emt 0:04:23]} 45. Ke4 {[%emt 0:00:59]} Rf5 {[%emt 0:02:47]} 46. Rb7 {[%emt 0:01:42]} b5 {[%emt 0:05:40]} 47. Rhg7 {[%emt 0:01:51]} b4 {[%emt 0:01:05]} 48. Rb6 {[%emt 0:01:34]} Rf6 {[%emt 0:00:14]} 49. Rb5+ {[%emt 0:00:09]} Kh6 {[%emt 0:00:05]} 50. Ra7 {[%emt 0:00:07]} Rxa2 {[%emt 0:00:14]} 51. Raxa5 {[%emt 0:01:09]} Rxa5 {[%emt 0:00:09]} 52. Rxa5 {[%emt 0:00:13]} Rb6 {[%emt 0:00:02]} 53. Ra2 {[%emt 0:02:09]} Kg7 {[%emt 0:01:56]} 54. Kd5 {[%emt 0:00:38]} b3 {[%emt 0:00:11]} 55. Rb2 {[%emt 0:00:10]} Kf6 {[%emt 0:01:21]} 56. Kc5 {[%emt 0:01:51]} Rb8 {[%emt 0:00:01]} 57. Kc6 {[%emt 0:01:40]} Ke7 {[%emt 0:00:57]} 58. Re2+ {[%emt 0:01:46]} Kd8 {[%emt 0:00:16]} 59. Rh2 {[%emt 0:00:13]} Rb4 {[%emt 0:00:51]} 60. d5 {[%emt 0:00:32]} b2 {[%emt 0:00:34]} 61. Rh8+ {[%emt 0:00:26]} Ke7 {[%emt 0:00:01]} 62. d6+ {[%emt 0:00:17]} Kf7 {[%emt 0:01:04]} 63. d7 {[%emt 0:00:40]} b1=Q {[%emt 0:00:25]} 64. Rf8+ {[%emt 0:00:44]} Ke6 {[%emt 0:00:39]} 65. Rf6+ {[%emt 0:00:33]} Ke5 {[%emt 0:00:07]} 66. d8=Q {[%emt 0:00:21]} Qc2+ {[%emt 0:00:07]} 67. Kd7 {[%emt 0:00:04]} Rd4+ {[%emt 0:00:17]} 0-1